bitfinex/quotes_BTCUSD_20260126
["timestamp","ask_amount","ask_price","bid_price","bid_amount"]
[1769390390298,1.10093664,87349.0,87334.0,0.09011306]
[1769390390496,1.07922048,87348.0,87334.0,0.09011306]
[1769390390696,0.01144859,87347.0,87334.0,0.09011306]
[1769390391056,0.01144872,87346.0,87334.0,0.09011306]
[1769390391232,1.07922075,87346.0,87334.0,0.09011306]
[1769390391730,0.01144911,87343.0,87334.0,0.09011306]
[1769390391910,0.01144898,87344.0,87334.0,0.09011306]
[1769390392329,1.07922062,87347.0,87329.0,0.10937013]
[1769390392528,1.06777203,87345.0,87329.0,0.10937013]
[1769390392931,0.01144911,87343.0,87329.0,0.10937013]
[1769390393132,0.06339672,87349.0,87329.0,1.06831821]
[1769390393334,0.01851487,87348.0,87332.0,0.10937013]
[1769390393559,0.01880381,87349.0,87332.0,0.10824693]
[1769390393853,0.06291471,87349.0,87334.0,0.10937013]
[1769390394017,1.06777203,87342.0,87327.0,0.00046903]
[1769390394839,1.06777203,87342.0,87332.0,0.001]
[1769390395243,1.06777203,87342.0,87327.0,0.00046903]
[1769390395449,1.06777203,87342.0,87327.0,0.10983916]
[1769390395952,0.01897874,87341.0,87327.0,0.10983916]
[1769390396378,1.07922114,87343.0,87327.0,0.10983916]
[1769390396646,0.01842299,87342.0,87327.0,0.10983916]
[1769390397072,0.21707842,87349.0,87342.0,0.00785211]
[1769390397280,0.17588,87354.0,87342.0,0.00785211]
[1769390397487,0.04119842,87357.0,87342.0,0.10937013]
[1769390397787,0.04119842,87357.0,87344.0,0.10937013]
[1769390397982,0.06291471,87357.0,87344.0,0.10937013]
[1769390398417,0.06291471,87357.0,87337.0,1.06831821]
[1769390398577,0.06291471,87357.0,87339.0,1.06831821]
[1769390398769,0.06291471,87357.0,87341.0,1.06831821]
[1769390398968,0.06291471,87357.0,87342.0,0.10937013]
[1769390399176,0.05624792,87357.0,87342.0,1.06831821]
[1769390399376,0.05624792,87357.0,87343.0,0.10937013]
[1769390400385,0.01144596,87367.0,87346.0,1.06831821]
[1769390400594,0.03054823,87366.0,87354.0,0.01144767]
[1769390400800,0.06333896,87379.0,87354.0,0.01144767]
[1769390400801,0.02171629,87365.0,87355.0,0.10937013]
[1769390401001,0.02171629,87369.0,87355.0,0.10937013]
[1769390401309,1.06257524,87366.0,87355.0,0.10937013]
[1769390401526,0.01144583,87368.0,87337.0,0.10937013]
[1769390401527,1.07617067,87355.0,87337.0,0.10937013]
[1769390401739,1.06257524,87351.0,87337.0,0.10983916]
[1769390401954,0.01144583,87368.0,87348.0,0.10937013]
[1769390402159,0.04119842,87366.0,87351.0,1.06831821]
[1769390402435,1.06891335,87365.0,87352.0,0.10937013]
[1769390402640,1.06891335,87365.0,87345.0,1.06831821]
[1769390402845,1.06891335,87365.0,87341.0,0.10937013]
[1769390402846,1.06891335,87363.0,87341.0,0.10937013]
[1769390403018,0.42946663,87360.0,87341.0,0.10937013]
[1769390403199,1.03564032,87359.0,87341.0,0.10937013]
[1769390403812,1.03564032,87359.0,87341.0,0.12629861]
[1769390404034,1.03564032,87359.0,87342.0,0.12629848]
[1769390404234,0.06688276,87363.0,87342.0,0.12629848]
[1769390404235,0.01144583,87368.0,87344.0,0.11484924]
[1769390404437,0.61678816,87370.0,87343.0,0.01144911]
[1769390404438,0.04119842,87367.0,87349.0,0.11484924]
[1769390404639,0.11431882,87366.0,87351.0,0.11484924]
[1769390404977,0.11431882,87365.0,87353.0,0.11192861]
[1769390405095,0.11431882,87364.0,87353.0,0.10945643]
[1769390405300,0.11431882,87363.0,87353.0,0.1074328]
[1769390405503,0.11431882,87362.0,87353.0,0.1074328]
[1769390405706,0.11431882,87361.0,87353.0,0.1074328]
[1769390405974,0.11431882,87360.0,87353.0,0.1074328]
[1769390406225,0.10300264,87369.0,87353.0,0.1074328]
[1769390406226,0.09155694,87369.0,87353.0,0.1074328]
[1769390406383,0.09155694,87369.0,87320.0,0.0003064]
[1769390406384,0.14817952,87387.0,87360.0,0.01]
[1769390406582,0.03076979,87386.0,87365.0,0.11484924]
[1769390406790,0.01144321,87388.0,87367.0,0.11484924]
[1769390406991,0.0422134,87385.0,87369.0,0.11484924]
[1769390407191,0.86788869,87385.0,87369.0,0.11484924]
[1769390407428,0.86788869,87385.0,87370.0,0.11484924]
[1769390407639,0.01144295,87390.0,87372.0,0.11484924]
[1769390407791,8.586e-05,87385.0,87372.0,0.11484924]
[1769390408121,8.586e-05,87385.0,87372.0,1.07158792]
[1769390408324,8.586e-05,87385.0,87373.0,0.11480924]
[1769390408497,8.586e-05,87385.0,87373.0,0.11256054]
[1769390408721,8.586e-05,87385.0,87373.0,0.1109861]
[1769390409067,8.586e-05,87385.0,87366.0,0.0114461]
[1769390409283,0.86855681,87383.0,87369.0,0.11484924]
[1769390409711,8.586e-05,87385.0,87371.0,0.11484924]
[1769390409919,8.586e-05,87385.0,87373.0,0.11484924]
[1769390410145,8.586e-05,87385.0,87373.0,0.11226719]
[1769390410408,8.586e-05,87385.0,87373.0,0.11484924]
[1769390410606,0.04119842,87390.0,87385.0,8.586e-05]
[1769390410805,0.13673618,87393.0,87380.0,0.11484924]
[1769390411231,0.13673618,87394.0,87380.0,0.11484924]
[1769390411421,0.13673618,87395.0,87381.0,0.11484924]
[1769390412369,0.13673618,87399.0,87386.0,0.11484924]
[1769390412611,0.13719658,87401.0,87387.0,1.07158792]
[1769390412739,0.13719658,87401.0,87390.0,0.11484924]
[1769390412941,0.13719658,87401.0,87392.0,0.11484924]
[1769390413143,0.13719658,87401.0,87387.0,0.01144334]
[1769390413144,0.0004604,87401.0,87393.0,0.11484924]
[1769390413346,0.01143902,87420.0,87402.0,0.12430298]
[1769390413571,0.04119842,87414.0,87402.0,0.11361086]
[1769390413826,0.0118219,87424.0,87404.0,0.11484924]
[1769390413987,1.04707948,87419.0,87405.0,0.11484924]
[1769390414208,0.00130415,87405.0,87402.0,8.586e-05]
[1769390415059,1.03564032,87410.0,87402.0,8.586e-05]
[1769390416408,1.03564032,87410.0,87396.0,0.11484924]
[1769390416711,1.03578103,87410.0,87396.0,0.11484924]
[1769390416888,0.00014071,87410.0,87396.0,0.11484924]
[1769390417089,0.06863202,87423.0,87392.0,0.0458]
[1769390417090,0.17009108,87435.0,87416.0,0.00855513]
[1769390417290,0.01143641,87440.0,87421.0,1.03085438]
[1769390417491,0.01143641,87440.0,87424.0,0.11185072]
[1769390417492,0.00014069,87440.0,87424.0,0.11185072]
[1769390417724,0.01143615,87442.0,87425.0,0.11185072]
[1769390417926,0.01143641,87440.0,87425.0,0.11185072]
[1769390418125,0.011905,87442.0,87425.0,0.11185072]
[1769390418329,0.12542341,87441.0,87426.0,0.11185072]
[1769390418648,0.11398713,87440.0,87426.0,0.11185072]
[1769390418876,0.011905,87442.0,87427.0,1.03085438]
[1769390418877,0.11398713,87439.0,87427.0,1.03085438]
[1769390419087,0.11398713,87438.0,87428.0,0.11185072]
[1769390419293,0.11398713,87437.0,87428.0,0.11185072]
[1769390419491,0.11398713,87436.0,87428.0,0.11185072]
[1769390419697,0.11398713,87435.0,87428.0,0.11185072]
[1769390419919,0.00130415,87428.0,87412.0,0.11185072]
[1769390420057,0.00130415,87428.0,87421.0,0.01143889]
[1769390420264,0.01143562,87446.0,87425.0,0.11185072]
[1769390420466,0.01143562,87446.0,87428.0,1.03085438]
[1769390420657,0.01143562,87446.0,87429.0,0.11185072]
[1769390420879,0.01143536,87448.0,87429.0,0.11185072]
[1769390421064,0.01143589,87444.0,87429.0,0.11185072]
[1769390421262,0.011905,87442.0,87429.0,0.11185072]
[1769390421467,0.00046885,87442.0,87429.0,0.11185072]
[1769390421853,0.01143628,87441.0,87429.0,0.11185072]
[1769390422046,0.01143641,87440.0,87429.0,0.11185072]
[1769390422292,0.05263548,87435.0,87412.0,0.12329079]
[1769390422491,0.98517594,87435.0,87414.0,1.03085438]
[1769390422665,1.0149373,87434.0,87415.0,0.11185072]
[1769390422867,0.97373888,87431.0,87415.0,0.11185072]
[1769390423558,0.11230849,87433.0,87415.0,0.11185072]
[1769390423559,0.97373888,87432.0,87415.0,0.11185072]
[1769390424209,0.00046885,87442.0,87418.0,0.01143929]
[1769390424411,0.00046885,87442.0,87422.0,0.11185072]
[1769390424412,0.011905,87442.0,87422.0,0.11185072]
[1769390424563,0.97420773,87442.0,87422.0,0.11185072]
[1769390424763,0.0114368,87437.0,87422.0,0.11185072]
[1769390424967,1.40320147,87440.0,87422.0,0.11185072]
[1769390425211,0.97373888,87440.0,87422.0,1.03085438]
[1769390425410,0.97373888,87440.0,87423.0,0.11185072]
[1769390425616,0.00046885,87442.0,87426.0,1.03085438]
[1769390425816,0.00046885,87442.0,87428.0,0.11185072]
[1769390426068,0.00046885,87442.0,87428.0,0.10820953]
[1769390426293,0.00046885,87442.0,87428.0,0.10456773]
[1769390426492,0.00046885,87442.0,87428.0,0.10092533]
[1769390426649,0.00046885,87442.0,87428.0,0.09728227]
[1769390426862,0.97373888,87441.0,87418.0,1.03085438]
[1769390427041,1.09024182,87438.0,87419.0,0.11967813]
[1769390427242,0.05263548,87435.0,87419.0,0.11185072]
[1769390427443,0.01143719,87434.0,87419.0,0.11185072]
[1769390427681,0.01143732,87433.0,87419.0,0.11185072]
[1769390427870,0.97373888,87433.0,87419.0,0.11185072]
[1769390428818,0.06861933,87439.0,87416.0,0.04576]
[1769390428819,0.01143602,87443.0,87421.0,0.11185072]
[1769390429032,0.01163575,87445.0,87423.0,1.03085438]
[1769390429223,0.01163575,87445.0,87427.0,1.03085438]
[1769390429429,0.01163575,87445.0,87428.0,0.11185072]
[1769390429638,0.01143589,87444.0,87428.0,0.10986313]
[1769390429841,0.01143589,87444.0,87428.0,0.10721273]
[1769390430028,0.01143602,87443.0,87428.0,0.10356787]
[1769390430232,0.011905,87442.0,87428.0,0.09992239]
[1769390430429,0.00046885,87442.0,87428.0,0.10510216]
[1769390430608,0.011905,87442.0,87428.0,0.09395574]
[1769390430817,0.01143628,87441.0,87428.0,0.09395574]
[1769390431015,0.11650294,87439.0,87418.0,0.01143929]
[1769390431243,0.97373888,87438.0,87419.0,0.00783004]
[1769390431456,1.09024182,87438.0,87419.0,0.11185072]
[1769390431668,1.09024182,87438.0,87422.0,0.01143876]
[1769390431880,1.09024182,87438.0,87423.0,0.00838789]
[1769390432084,1.09024182,87438.0,87424.0,0.00838778]
[1769390433708,0.01143641,87440.0,87425.0,1.02982703]
[1769390433923,0.98517542,87439.0,87426.0,0.0060668]
[1769390434131,0.0049733,87438.0,87426.0,0.0020881]
[1769390434355,0.98517542,87439.0,87422.0,0.11185072]
[1769390434560,0.98517542,87439.0,87423.0,0.01197549]
[1769390434766,0.98517542,87439.0,87423.0,0.02287727]
[1769390434971,0.97373888,87439.0,87423.0,0.02287727]
[1769390435609,0.97373888,87439.0,87424.0,0.11632874]
[1769390435812,0.97373888,87439.0,87425.0,0.02287674]
[1769390436041,0.12482781,87442.0,87425.0,0.02287674]
[1769390436248,0.0002,87445.0,87442.0,0.00953115]
[1769390436459,0.0002,87445.0,87417.0,0.01143942]
[1769390436668,0.96835027,87442.0,87422.0,0.11632874]
[1769390436905,0.42946259,87440.0,87422.0,0.11632874]
[1769390437129,0.00828919,87439.0,87424.0,0.11632874]
[1769390437338,0.01972534,87442.0,87426.0,0.11632874]
[1769390437548,0.00828919,87442.0,87426.0,0.11632874]
[1769390437933,0.00828919,87442.0,87427.0,1.02982703]
[1769390438150,0.00828919,87442.0,87428.0,0.11632874]
[1769390438870,0.0002,87445.0,87432.0,1.02982703]
[1769390439002,0.01163575,87445.0,87433.0,0.11433887]
[1769390439206,0.00828919,87444.0,87433.0,0.11068984]
[1769390439426,0.01163575,87445.0,87433.0,0.12983922]
[1769390439626,0.00848919,87445.0,87433.0,0.12651977]
[1769390439787,0.00848919,87445.0,87433.0,0.1000676]
[1769390439993,0.00848919,87445.0,87433.0,0.09608162]
[1769390440213,0.0002,87445.0,87433.0,0.09309119]
[1769390440449,0.01143589,87444.0,87428.0,0.02279962]
[1769390440657,0.98807548,87443.0,87425.0,0.02279988]
[1769390440855,0.98807548,87443.0,87425.0,0.13912862]
[1769390440856,0.97978629,87443.0,87425.0,0.13912862]
[1769390441032,0.42946259,87440.0,87425.0,0.13912862]
[1769390441239,0.42946259,87440.0,87425.0,0.11632874]
[1769390442237,0.04119842,87439.0,87425.0,0.11632874]
[1769390442442,0.01972573,87439.0,87426.0,0.02280013]
[1769390442814,0.00828919,87439.0,87426.0,0.02280013]
[1769390443006,0.00828919,87440.0,87426.0,0.02280013]
[1769390443230,0.43775178,87440.0,87426.0,0.02280013]
[1769390443419,0.440899,87440.0,87426.0,0.02280013]
[1769390443600,0.42946259,87440.0,87426.0,0.02280013]
[1769390444423,0.440899,87440.0,87426.0,0.02280013]
[1769390444622,0.00828919,87439.0,87426.0,0.02280013]
[1769390445959,0.00828919,87439.0,87425.0,0.11632874]
[1769390446364,0.00828919,87439.0,87426.0,0.02280012]
[1769390448316,0.96835027,87440.0,87426.0,0.02280012]
[1769390448494,0.00866099,87439.0,87426.0,0.02280012]
[1769390450200,0.0003718,87439.0,87426.0,0.02280012]
[1769390450420,0.0003718,87439.0,87426.0,0.13912886]
[1769390450931,0.0003718,87439.0,87426.0,0.1505671]
[1769390451302,0.0003718,87439.0,87426.0,0.13912886]
[1769390452298,0.0003718,87439.0,87427.0,1.02982703]
[1769390452545,0.0003718,87439.0,87428.0,0.02281502]
[1769390454205,0.11441092,87438.0,87428.0,0.02281502]
[1769390454411,0.0003718,87439.0,87428.0,0.02281502]
[1769390454611,0.11441092,87438.0,87428.0,0.02281502]
[1769390454809,0.0003718,87439.0,87428.0,0.02281502]
[1769390455033,0.11441092,87438.0,87428.0,0.02281502]
[1769390455234,0.11441092,87437.0,87428.0,0.02248262]
[1769390455468,0.01180834,87439.0,87428.0,0.02248262]
[1769390455648,0.11441287,87438.0,87428.0,0.02248262]
[1769390455853,0.11441287,87437.0,87428.0,0.02248262]
[1769390456025,0.96835027,87437.0,87423.0,0.19787097]
[1769390456226,0.96835027,87432.0,87418.0,0.17568]
[1769390456450,0.34291136,87430.0,87418.0,0.17568]
[1769390456664,1.31126163,87430.0,87418.0,0.17568]
[1769390456879,0.34291136,87430.0,87418.0,0.17568]
[1769390458569,0.34291136,87430.0,87417.0,0.00046885]
[1769390458769,0.34291136,87430.0,87417.0,0.00028905]
[1769390458770,0.45583417,87430.0,87417.0,0.00028905]
[1769390458977,0.34291136,87430.0,87417.0,0.00028905]
[1769390459179,0.34291136,87430.0,87419.0,0.11632874]
[1769390459529,0.34291136,87430.0,87417.0,0.01172847]
[1769390459530,0.0003718,87439.0,87436.0,0.01143693]
[1769390459739,0.34291136,87450.0,87440.0,1.02982703]
[1769390459955,0.34291136,87446.0,87441.0,0.11632874]
[1769390460101,0.34291136,87450.0,87437.0,0.17568]
[1769390460302,0.34291136,87450.0,87437.0,0.29200874]
[1769390460799,0.34291136,87450.0,87438.0,0.11632874]
[1769390460987,0.0030296,87449.0,87438.0,0.11632874]
[1769390461619,0.0030296,87449.0,87433.0,0.172246]
[1769390461620,0.00046885,87438.0,87433.0,0.172246]
[1769390461781,0.00046885,87438.0,87433.0,0.165378]
[1769390461983,0.34594096,87443.0,87433.0,0.165378]
[1769390461984,0.34291136,87443.0,87433.0,0.165378]
[1769390462178,0.0030296,87442.0,87433.0,0.165378]
[1769390462384,0.34291136,87443.0,87434.0,0.00445636]
[1769390462631,0.00631794,87459.0,87443.0,1.14615577]
[1769390462789,0.47956275,87470.0,87454.0,1.02982703]
[1769390463083,0.02925694,87469.0,87457.0,0.04119842]
[1769390463244,0.34291136,87467.0,87457.0,0.14473461]
[1769390463538,0.01143209,87473.0,87457.0,0.10353619]
[1769390463764,0.54162112,87480.0,87456.0,0.04119842]
[1769390463765,0.03036766,87472.0,87458.0,1.09072226]
[1769390463962,0.03036766,87472.0,87456.0,0.04119842]
[1769390463963,0.0030296,87471.0,87459.0,0.10353619]
[1769390464182,0.00046867,87472.0,87460.0,0.10353619]
[1769390464494,0.42835251,87470.0,87460.0,0.10353619]
[1769390464797,0.00046867,87472.0,87460.0,1.19425845]
[1769390465001,0.00046867,87472.0,87466.0,0.04119842]
[1769390466087,0.42869831,87480.0,87466.0,0.04119842]
[1769390466088,0.0003458,87480.0,87470.0,1.09072226]
[1769390466313,0.00048634,87480.0,87473.0,1.19425845]
[1769390466450,0.00048634,87480.0,87474.0,0.22144]
[1769390467265,0.00048634,87480.0,87475.0,0.10353619]
[1769390467625,0.0913158,87488.0,87480.0,0.00048634]
[1769390467758,0.0913158,87491.0,87487.0,0.04119842]
[1769390467957,1.27473957,87497.0,87488.0,0.04119842]
[1769390467958,0.0913158,87493.0,87488.0,0.04119842]
[1769390468182,0.0611158,87494.0,87488.0,0.04119842]
[1769390468387,0.0030296,87496.0,87488.0,0.04119842]
[1769390468590,3.20021731,87500.0,87497.0,0.00601521]
[1769390468759,3.20021731,87500.0,87498.0,0.20953165]
[1769390469163,3.20021731,87500.0,87498.0,0.30619984]
[1769390469364,3.20021731,87500.0,87498.0,0.30276584]
[1769390469773,1.51803264,87500.0,87498.0,0.19579565]
[1769390469975,1.51803264,87500.0,87499.0,0.32497619]
[1769390470172,0.5651936,87500.0,87499.0,1.31216226]
[1769390470375,8.44e-05,87505.0,87503.0,1.09072226]
[1769390470607,4.22e-05,87505.0,87504.0,0.04119842]
[1769390470857,4.22e-05,87505.0,87504.0,1.23545687]
[1769390471474,0.0004359,87515.0,87512.0,0.10353619]
[1769390471680,0.00057642,87515.0,87512.0,0.09353619]
[1769390471880,0.00057642,87515.0,87513.0,0.10353619]
[1769390472307,0.00057642,87515.0,87514.0,0.10353619]
[1769390472509,0.00057642,87515.0,87514.0,1.19425845]
[1769390472928,0.42835251,87530.0,87508.0,1.09072226]
[1769390473129,1.12665922,87547.0,87524.0,0.01142543]
[1769390473345,0.00099937,87550.0,87532.0,0.10353619]
[1769390473346,0.14292697,87545.0,87532.0,0.10353619]
[1769390473561,0.42835251,87542.0,87532.0,0.10343619]
[1769390473803,0.11355359,87541.0,87532.0,0.10343619]
[1769390473976,0.0114223,87548.0,87532.0,0.10343619]
[1769390473977,0.00099937,87550.0,87532.0,0.10343619]
[1769390474187,0.0004859,87573.0,87551.0,1.09072226]
[1769390474188,0.00427122,87565.0,87551.0,1.09072226]
[1769390474360,0.0004859,87573.0,87556.0,0.10353619]
[1769390474361,0.42835251,87570.0,87556.0,0.10353619]
[1769390474562,0.0004859,87573.0,87550.0,0.17564]
[1769390474563,0.42835251,87566.0,87550.0,0.17564]
[1769390474865,1.01470937,87565.0,87546.0,0.01142256]
[1769390475077,1.01470937,87565.0,87550.0,0.04119842]
[1769390475289,0.0004685,87565.0,87550.0,0.05262046]
[1769390475740,0.0004685,87565.0,87553.0,1.09072226]
[1769390475946,0.0004685,87565.0,87555.0,0.10353619]
[1769390476156,0.0004685,87565.0,87553.0,1.09096036]
[1769390476359,0.0004685,87565.0,87564.0,0.19013934]
[1769390476558,0.0004685,87565.0,87564.0,0.1900039]
[1769390476688,0.00057642,87564.0,87556.0,0.04119842]
[1769390477298,0.00057642,87564.0,87555.0,0.14894092]
[1769390477503,0.0004859,87573.0,87562.0,1.07953871]
[1769390477708,0.42835251,87572.0,87564.0,0.04119842]
[1769390477930,0.42835251,87572.0,87550.0,0.04119842]
[1769390477931,0.01141943,87570.0,87550.0,0.04119842]
[1769390478104,1.05991372,87559.0,87537.0,0.32450092]
[1769390478347,0.42835251,87550.0,87538.0,0.04119842]
[1769390478847,1.05991372,87554.0,87539.0,0.14894092]
[1769390479281,0.42835251,87560.0,87539.0,0.14894092]
[1769390479506,0.42835251,87560.0,87552.0,0.03089642]
[1769390479870,0.42835251,87560.0,87552.0,0.02984981]
[1769390480194,0.42835251,87560.0,87552.0,0.02758092]
[1769390480355,0.42835251,87560.0,87552.0,0.02688239]
[1769390481880,1.48826623,87560.0,87552.0,0.02688239]
[1769390482298,0.01142139,87555.0,87538.0,0.04119842]
[1769390482524,1.05991372,87549.0,87547.0,0.04119842]
[1769390482828,1.05991372,87556.0,87547.0,0.04119842]
[1769390483411,1.05991372,87556.0,87547.0,0.04032464]
[1769390483588,1.05991372,87556.0,87547.0,0.03892572]
[1769390483793,1.05991372,87556.0,87536.0,0.04119842]
[1769390483992,0.42835251,87560.0,87551.0,0.04119842]
[1769390484459,1.48826623,87560.0,87551.0,0.04119842]
[1769390485351,0.42835251,87560.0,87552.0,0.14894092]
[1769390485880,0.42835251,87560.0,87538.0,0.01142361]
[1769390485881,1.05991372,87559.0,87537.0,0.14894092]
[1769390486082,1.05991372,87559.0,87552.0,0.04119842]
[1769390486315,1.05991372,87554.0,87542.0,0.14894092]
[1769390486520,1.05991372,87545.0,87535.0,0.04119842]
[1769390486882,1.05991372,87545.0,87536.0,0.01884383]
[1769390486997,0.01142243,87547.0,87536.0,0.01884383]
[1769390486998,0.01142139,87555.0,87536.0,1.09750749]
[1769390487196,0.42835251,87550.0,87537.0,0.14894092]
[1769390487422,0.42835251,87550.0,87549.0,0.19013934]
[1769390487629,0.42835251,87559.0,87550.0,0.00985959]
[1769390487864,0.42835251,87559.0,87550.0,0.01032809]
[1769390488067,0.04572,87566.0,87552.0,1.07953871]
[1769390488291,0.42835251,87560.0,87553.0,0.16635248]
[1769390489720,0.42835251,87570.0,87561.0,0.14894092]
[1769390489915,0.42835251,87570.0,87565.0,0.04119842]
[1769390490070,0.42835251,87570.0,87565.0,0.19013934]
[1769390490273,0.42835251,87570.0,87565.0,0.18978871]
[1769390490478,0.42835251,87570.0,87565.0,0.18821044]
[1769390490678,0.42835251,87570.0,87566.0,0.14894092]
[1769390491226,0.42835251,87570.0,87565.0,0.03839237]
[1769390492166,0.42835251,87570.0,87559.0,0.14894092]
[1769390492379,0.42835251,87570.0,87563.0,0.04119842]
[1769390492578,1.48826623,87570.0,87563.0,0.04119842]
[1769390492780,1.48826623,87570.0,87564.0,0.04119842]
[1769390493032,1.05991372,87569.0,87555.0,0.01866454]
[1769390493471,1.05991372,87569.0,87558.0,0.011421]
[1769390493689,1.05991372,87569.0,87555.0,0.03008593]
[1769390494302,1.05991372,87569.0,87555.0,0.01866454]
[1769390494442,1.05991372,87569.0,87555.0,0.02991004]
[1769390494648,1.05991372,87569.0,87555.0,0.01848865]
[1769390494872,0.0017508,87568.0,87555.0,0.01890032]
[1769390495400,0.42835251,87570.0,87555.0,0.03032171]
[1769390495602,0.42835251,87570.0,87564.0,0.04119842]
[1769390496105,1.16656284,87575.0,87564.0,0.04119842]
[1769390496289,0.17548,87580.0,87565.0,0.01142008]
[1769390496600,0.42835251,87575.0,87565.0,0.14591932]
[1769390497224,0.42835251,87575.0,87566.0,0.04119842]
[1769390497427,0.42835251,87575.0,87566.0,0.05261837]
[1769390497583,0.42835251,87580.0,87575.0,0.0095141]
[1769390497784,1.16656284,87579.0,87575.0,0.00898558]
[1769390498024,0.42835251,87580.0,87571.0,0.15733862]
[1769390498224,0.42835251,87580.0,87573.0,0.01141904]
[1769390498438,0.42835251,87580.0,87574.0,0.01141891]
[1769390498643,0.42835251,87580.0,87560.0,0.22841275]
[1769390498644,0.17548,87593.0,87579.0,0.15733758]
[1769390498854,0.42835251,87590.0,87580.0,0.14591932]
[1769390499404,0.0004859,87602.0,87588.0,0.14591932]
[1769390499600,0.42835251,87600.0,87592.0,0.14591932]
[1769390499830,0.02357515,87599.0,87592.0,0.14591932]
[1769390500029,0.02357515,87599.0,87593.0,1.08106423]
[1769390500235,0.02357515,87599.0,87596.0,0.14591932]
[1769390500529,1.16656284,87609.0,87596.0,0.1453848]
[1769390500715,0.42835251,87610.0,87596.0,1.08106423]
[1769390500957,0.42835251,87610.0,87599.0,0.14591932]
[1769390501158,0.42835251,87610.0,87590.0,0.01141682]
[1769390501354,0.42835251,87610.0,87538.0,0.1205]
[1769390501355,0.00985958,87590.0,87584.0,0.14591932]
[1769390501556,0.43835234,87590.0,87577.0,0.17544]
[1769390501942,0.00999983,87590.0,87582.0,0.14591932]
[1769390502158,0.42835251,87600.0,87589.0,0.14591932]
[1769390502404,1.17196284,87620.0,87595.0,1.05964979]
[1769390502621,0.42835251,87610.0,87596.0,0.14591932]
[1769390503267,0.01141461,87607.0,87584.0,0.14691932]
[1769390503479,0.42835251,87600.0,87584.0,0.32235932]
[1769390503688,0.42835251,87600.0,87580.0,0.01141813]
[1769390503894,0.42835251,87600.0,87583.0,0.01141774]
[1769390504088,1.16656284,87599.0,87582.0,0.15733719]
[1769390504316,0.01141474,87606.0,87583.0,0.14591932]
[1769390504439,1.17972838,87606.0,87585.0,0.14591932]
[1769390504643,1.16656284,87606.0,87585.0,0.1573368]
[1769390504879,1.16656284,87617.0,87590.0,1.05964979]
[1769390505082,1.16656284,87617.0,87587.0,0.04119842]
[1769390505083,0.00554033,87620.0,87588.0,0.14591932]
[1769390505294,0.01736995,87645.0,87620.0,0.16287256]
[1769390505522,0.43045251,87640.0,87620.0,0.15145965]
[1769390505659,0.43045251,87640.0,87622.0,0.01141265]
[1769390505862,0.43045251,87640.0,87622.0,0.15733197]
[1769390506083,0.43045251,87640.0,87623.0,0.01141252]
[1769390506285,1.16656284,87638.0,87622.0,0.14591932]
[1769390506707,0.0021,87640.0,87624.0,0.14591932]
[1769390506934,1.16829714,87639.0,87624.0,0.14591932]
[1769390507383,1.17970758,87639.0,87618.0,0.1754]
[1769390507682,1.59491535,87630.0,87615.0,0.14591932]
[1769390507992,1.59491535,87630.0,87601.0,1.02897337]
[1769390507993,1.16656284,87628.0,87607.0,0.01141461]
[1769390508150,0.01141096,87635.0,87614.0,0.14591932]
[1769390508513,0.43045251,87640.0,87607.0,0.00014033]
[1769390508514,1.16656284,87633.0,87616.0,0.14591932]
[1769390508708,0.15026754,87639.0,87615.0,0.01141357]
[1769390508709,0.0017343,87639.0,87618.0,0.14591932]
[1769390508926,0.0017508,87638.0,87625.0,0.01141226]
[1769390509126,0.0017343,87639.0,87626.0,0.14591932]
[1769390509472,1.16656284,87638.0,87614.0,0.14591932]
[1769390509678,1.16656284,87638.0,87580.0,0.42835251]
[1769390509679,0.0017343,87639.0,87622.0,0.14591932]
[1769390510473,0.0017343,87639.0,87630.0,0.01141161]
[1769390510664,0.0021,87640.0,87639.0,6.52e-05]
[1769390510845,0.0021,87640.0,87608.0,0.01141448]
[1769390510846,1.16656284,87634.0,87608.0,0.01141448]
[1769390511003,0.05705438,87636.0,87609.0,0.15733367]
[1769390511203,0.01141109,87634.0,87611.0,0.14591932]
[1769390511389,0.01141031,87640.0,87616.0,0.15733276]
[1769390511598,0.01141083,87636.0,87616.0,0.14591932]
[1769390511822,0.01141044,87639.0,87616.0,0.14591932]
[1769390511823,1.16656284,87637.0,87616.0,0.14591932]
[1769390512188,1.16656284,87637.0,87617.0,0.01141331]
[1769390512361,1.16656284,87637.0,87618.0,0.14591932]
[1769390512572,0.01140901,87650.0,87623.0,0.15733184]
[1769390512778,0.43976282,87640.0,87617.0,0.01141331]
[1769390512937,1.16656284,87640.0,87620.0,0.01141291]
[1769390513306,0.00046795,87650.0,87635.0,0.01141096]
[1769390513438,0.00046795,87650.0,87641.0,0.14585404]
[1769390513662,0.0019508,87658.0,87641.0,0.14585404]
[1769390513878,0.00209104,87658.0,87641.0,0.14585404]
[1769390514082,1.16865388,87658.0,87641.0,0.14585404]
[1769390514296,0.00034024,87658.0,87641.0,1.02850542]
[1769390514497,0.00034024,87658.0,87642.0,0.14591932]
[1769390515369,0.00034024,87658.0,87649.0,0.01140914]
[1769390515598,0.01140667,87668.0,87649.0,0.14591932]
[1769390515795,0.0131576,87667.0,87649.0,0.14605956]
[1769390516027,0.0017508,87667.0,87649.0,0.14605956]
[1769390516204,0.0017508,87668.0,87649.0,0.1574687]
[1769390516404,0.0017508,87668.0,87649.0,0.14605956]
[1769390516580,0.0005881,87669.0,87649.0,1.02830542]
[1769390516788,0.0005881,87669.0,87650.0,0.14591932]
[1769390516983,0.0005881,87669.0,87650.0,0.14561932]
[1769390517428,0.0005881,87669.0,87649.0,1.02830542]
[1769390517586,0.0005881,87669.0,87650.0,0.14591932]
[1769390517792,0.01140667,87668.0,87650.0,0.14591932]
[1769390517975,0.0114068,87667.0,87650.0,0.14591932]
[1769390518326,0.01140719,87664.0,87650.0,0.14591932]
[1769390518486,0.01140693,87666.0,87650.0,0.14591932]
[1769390518691,0.0005881,87669.0,87649.0,0.00014024]
[1769390518915,0.01140667,87668.0,87650.0,0.14591932]
[1769390519227,0.01374544,87669.0,87650.0,0.14591932]
[1769390519427,0.0023389,87669.0,87650.0,0.14591932]
[1769390519630,1.17796951,87668.0,87650.0,0.14591932]
[1769390519831,1.16656284,87666.0,87650.0,0.14591932]
[1769390520458,1.16656284,87659.0,87642.0,0.04564]
[1769390520652,0.01154798,87659.0,87641.0,0.14591932]
[1769390520830,0.00189094,87659.0,87642.0,0.01837071]
[1769390521013,0.00189094,87659.0,87643.0,0.14591932]
[1769390521211,0.00014014,87659.0,87644.0,0.1642896]
[1769390521430,0.00014014,87659.0,87649.0,0.01140914]
[1769390521625,0.0005881,87669.0,87652.0,0.14591932]
[1769390522035,0.0005881,87669.0,87658.0,0.14591932]
[1769390522240,0.0005881,87669.0,87658.0,0.14605946]
[1769390522508,0.0005881,87669.0,87660.0,0.01140771]
[1769390522650,0.0231805,87685.0,87681.0,0.14591932]
[1769390523517,0.00488488,87685.0,87681.0,0.14591932]
[1769390523758,0.42835251,87710.0,87683.0,0.15313608]
[1769390523959,1.11704717,87705.0,87686.0,0.01140432]
[1769390524183,0.01140081,87713.0,87680.0,0.04564]
[1769390524184,0.42835251,87700.0,87681.0,0.15313608]
[1769390524381,1.11704717,87698.0,87681.0,0.15283608]